bitfinex/quotes_SOLUSD_20241115
["timestamp","ask_amount","ask_price","bid_price","bid_amount"]
[1731683247538,0.25098,209.96,209.83,11.914]
[1731683248052,0.25098,209.94,209.84,4.7654]
[1731683248537,0.25098,209.94,209.83,11.914]
[1731683248538,0.25098,209.94,209.83,16.6796]
[1731683248736,0.25098,209.94,209.83,11.914]
[1731683249048,0.12549,209.94,209.85,4.7652]
[1731683249439,0.12549,209.94,209.83,11.914]
[1731683249941,1.55449,209.93,209.84,4.7654]
[1731683250337,1.429,209.93,209.86,4.765]
[1731683250536,1.4287,209.97,209.84,35.40689886]
[1731683250849,1.4287,209.97,209.88,4.7644]
[1731683251149,12.5718,210.01,209.87,11.912]
[1731683251150,1.4286,209.99,209.91,4.7638]
[1731683251398,0.09367462,209.98,209.72,5.53872653]
[1731683251660,0.09367462,209.98,209.54,23.57576106]
[1731683251661,0.1,209.67,209.52,3.24]
[1731683251857,1.5319,209.51,209.5,7.5e-06]
[1731683252047,18.8905639,209.51,209.5,7.5e-06]
[1731683252355,18.8905639,209.51,209.15,31.2088]
[1731683252356,0.09367462,209.42,209.15,31.2088]
[1731683252558,0.1,209.35,209.15,66.61569886]
[1731683252749,21.8937429,209.34,209.15,66.61569886]
[1731683252950,23.87055862,209.32,209.12,35.62456546]
[1731683253149,130.83189345,209.31,209.12,19.64805939]
[1731683253349,43.84097221,209.3,209.13,47.36109886]
[1731683253539,0.1,209.21,209.11,0.08]
[1731683253755,65.52537318,209.2,209.08,52.14669886]
[1731683253942,71.65451545,209.19,209.11,0.08]
[1731683254252,71.65451545,209.19,209.12,4.7819]
[1731683254253,112.53708158,209.18,209.12,4.7819]
[1731683254456,43.84097221,209.17,209.12,16.7367]
[1731683254640,65.52537318,209.16,209.12,52.14359886]
[1731683254955,80.98994733,209.15,209.14,35.40689886]
[1731683255167,130.65704526,209.15,209.14,35.48689886]
[1731683255364,128.48919546,209.15,209.14,35.48689886]
[1731683255546,172.12082574,209.15,209.14,35.48689886]
[1731683255867,227.94629678,209.15,209.14,35.40689886]
[1731683256067,227.94629678,209.15,209.14,40.18829886]
[1731683257360,227.94629678,209.15,209.14,60.18829886]
[1731683257543,194.61299678,209.15,209.14,60.26829886]
[1731683257743,44.80063106,209.15,209.14,119.70306172]
[1731683258059,3.63027859,209.15,209.14,119.79673634]
[1731683258246,3.6474402,209.55,209.39,0.1]
[1731683258447,5.97593717,209.54,209.39,0.1]
[1731683258966,70.0,209.49,209.29,0.1]
[1731683259166,0.07367462,209.47,209.28,0.08]
[1731683259372,13.17208456,209.46,209.28,0.08]
[1731683259669,44.027864,209.46,209.29,0.1]
[1731683259847,44.027864,209.46,209.28,0.08]
[1731683260274,5.54779939,209.45,209.28,0.08]
[1731683260463,0.25098,209.39,209.3,0.1]
[1731683260670,0.25098,209.39,209.3,0.18]
[1731683260973,70.0,209.52,209.3,0.18]
[1731683260974,3.6474402,209.55,209.39,0.08]
[1731683261175,3.6474402,209.55,209.42,0.1]
[1731683261355,3.6474402,209.55,209.38,0.08]
[1731683261356,1.9089,209.54,209.44,0.1]
[1731683261670,1.9089,209.54,209.43,0.08]
[1731683261671,3.6474402,209.55,209.49,0.1]
[1731683261888,5.5562402,209.55,209.5,0.08]
[1731683262053,5.5562402,209.55,209.5,0.18]
[1731683262054,3.6474402,209.55,209.5,0.18]
[1731683262379,13.0168,209.58,209.52,0.18]
[1731683262563,1.908,209.64,209.54,0.1]
[1731683262962,1.908,209.64,209.58,0.1]
[1731683263280,4.7674,209.76,209.57,0.08]
[1731683263473,19.086208,209.69,209.58,0.1]
[1731683263674,7.37844406,209.75,209.61,0.1]
[1731683263887,7.37844406,209.75,209.63,0.1]
[1731683264064,2.0,209.83,209.66,0.08]
[1731683264265,2.0,209.83,209.56,16.7015]
[1731683264266,1.43,209.78,209.63,0.08]
[1731683264584,7.37290745,209.76,209.56,0.1]
[1731683264769,0.09367462,209.74,209.56,0.1]
[1731683264973,0.09367462,209.74,209.58,0.1]
[1731683265178,0.09367462,209.74,209.5,35.40689886]
[1731683265179,6.22468835,209.82,209.64,0.1]
[1731683265382,0.4,209.81,209.62,0.08]
[1731683265678,83.69749676,209.88,209.63,24.0703252]
[1731683265858,229.03515824,209.88,209.65,23.84398785]
[1731683266064,207.89632255,209.88,209.64,23.02050464]
[1731683266269,45.23557462,209.86,209.64,23.01836129]
[1731683266483,43.54938255,209.86,209.61,23.37438295]
[1731683266860,42.39694637,209.85,209.61,23.37438295]
[1731683267059,42.39694637,209.85,209.6,0.2]
[1731683267060,42.39694637,209.85,209.63,23.07762733]
[1731683267261,0.12549,209.84,209.63,23.41355546]
[1731683267582,48.50574967,209.83,209.64,23.66999092]
[1731683267780,43.26787094,209.83,209.64,23.66999092]
[1731683268083,70.0,209.85,209.58,23.18582144]
[1731683268280,70.0,209.85,209.59,23.91615089]
[1731683268281,219.22622477,209.84,209.59,23.91615089]
[1731683268496,226.59017465,209.84,209.59,23.91615089]
[1731683268679,0.09367462,209.82,209.57,23.79361685]
[1731683268873,0.09367462,209.82,209.49,35.40689886]
[1731683268874,54.49969015,209.81,209.58,0.2]
[1731683269072,23.902374,209.78,209.58,0.2]
[1731683269274,0.12549,209.79,209.58,0.1]
[1731683269485,24.027864,209.77,209.57,0.1]
[1731683269791,24.027864,209.77,209.47,4.7739]
[1731683269792,30.31370907,209.76,209.54,0.1]
[1731683270085,24.027864,209.75,209.56,0.1]
[1731683270293,24.027864,209.73,209.55,0.1]
[1731683270595,24.027864,209.73,209.54,0.1]
[1731683270768,24.027864,209.71,209.51,0.1]
[1731683270966,24.027864,209.65,209.48,0.2]
[1731683271282,24.027864,209.65,209.38,35.40689886]
[1731683271489,24.027864,209.61,209.37,35.40689886]
[1731683271786,24.027864,209.61,209.43,35.40689886]
[1731683272091,0.12549,209.58,209.44,35.40689886]
[1731683272289,0.12549,209.58,209.33,0.1]
[1731683272290,0.12549,209.58,209.4,35.40689886]
[1731683272467,0.12549,209.58,209.42,35.40689886]
[1731683272662,0.12549,209.58,209.4,35.40689886]
[1731683273071,0.12549,209.58,209.41,35.40689886]
[1731683273276,0.12549,209.58,209.4,35.40689886]
[1731683273488,24.027864,209.56,209.4,35.40689886]
[1731683274371,23.902374,209.54,209.38,35.40689886]
[1731683274576,23.902374,209.54,209.39,35.40689886]
[1731683274874,0.12549,209.52,209.42,35.40689886]
[1731683275074,0.12549,209.52,209.42,149.79716702]
[1731683275386,0.12549,209.52,209.42,114.39026816]
[1731683275590,1.4319,209.51,209.42,114.39026816]
[1731683276289,19.7697,209.64,209.42,114.39026816]
[1731683276486,44.027864,209.63,209.59,30.37455733]
[1731683276684,30.0,209.6,209.55,85.9038688]
[1731683277279,24.56182767,209.64,209.55,85.9038688]
[1731683278970,0.09367462,209.63,209.44,23.776884]
[1731683279184,0.09367462,209.63,209.43,23.776884]
[1731683279392,0.14320176,209.55,209.43,23.776884]
[1731683279576,1.4317,209.54,209.43,23.776884]
[1731683279787,1.4317,209.54,209.38,23.776884]
[1731683280193,1.4317,209.54,209.37,40.18299886]
[1731683280194,0.12549,209.53,209.37,23.776884]
[1731683280575,5.0109,209.54,209.37,59.18378286]
[1731683280779,0.12549,209.53,209.39,35.40689886]
[1731683281285,0.12549,209.53,209.36,16.7171]
[1731683281286,0.14320176,209.55,209.52,35.40689886]
[1731683281486,0.14320176,209.55,209.54,35.40689886]
[1731683281695,0.14320176,209.55,209.54,40.17919886]
[1731683282192,30.75110198,209.66,209.54,40.17919886]
[1731683282193,30.75110198,209.66,209.55,24.027864]
[1731683282401,30.75110198,209.66,209.61,35.40689886]
[1731683282584,30.75110198,209.66,209.62,23.776884]
[1731683282788,30.75110198,209.66,209.65,59.18378286]
[1731683283105,23.95123915,209.9,209.65,59.18378286]
[1731683283106,1.43,209.79,209.65,24.027864]
[1731683283283,23.42806068,209.92,209.75,35.40689886]
[1731683283614,35.75928785,209.93,209.79,35.40689886]
[1731683283801,35.75928785,209.93,209.75,35.40689886]
[1731683283998,17.50672107,209.93,209.76,35.40689886]
[1731683284182,40.75840892,209.93,209.73,128.48113024]
[1731683284387,23.19021053,209.94,209.73,163.8880291]
[1731683284778,23.36542595,209.94,209.73,128.48113024]
[1731683285113,23.43632512,209.93,209.74,85.93595042]
[1731683285400,23.62420001,209.97,209.74,86.13595042]
[1731683285700,31.172664,209.94,209.76,0.2]
[1731683286003,31.172664,209.94,209.74,121.34284928]
[1731683286004,5.0018,209.92,209.81,0.1]
[1731683286309,5.0018,209.92,209.83,0.1]
[1731683286600,5.0018,209.92,209.86,0.1]
[1731683286780,5.0018,209.92,209.83,0.1]
[1731683286975,5.0018,209.92,209.81,0.1]
[1731683287373,5.0018,209.92,209.84,0.1]
[1731683287575,5.0018,209.92,209.84,0.2]
[1731683287803,1.4291,209.92,209.86,0.1]
[1731683288004,1.4291,209.92,209.82,0.1]
[1731683288393,1.4291,209.92,209.84,0.1]
[1731683288733,1.4291,209.92,209.83,0.1]
[1731683289015,1.4291,209.92,209.78,0.1]
[1731683289180,47.3774,210.05,209.74,0.1]
[1731683289381,47.3774,210.05,209.73,128.48113024]
[1731683289382,6.97003798,209.82,209.73,128.48113024]
[1731683289713,6.97003798,209.79,209.78,0.1]
[1731683289887,13.94007596,209.81,209.8,0.1]
[1731683290086,13.94007596,209.83,209.8,0.1]
[1731683290278,6.97735875,209.82,209.81,35.50689886]
[1731683290483,41.8202279,209.83,209.81,35.50689886]
[1731683290783,55.76030386,209.87,209.84,0.1]
[1731683291006,13.724447,209.89,209.86,0.1]
[1731683291301,3.5723,209.95,209.9,0.1]
[1731683291302,1.4289,209.94,209.9,0.1]
[1731683291880,7.143,210.0,209.92,0.1]
[1731683291881,82.32596873,209.93,209.92,0.1]
[1731683292082,82.32596873,209.93,209.9,23.776884]
[1731683292302,55.99350223,209.91,209.9,23.756884]
[1731683292509,68.33819866,209.91,209.9,23.756884]
[1731683292679,68.33819866,209.91,209.9,0.1]
[1731683292880,83.32670092,209.91,209.89,0.1]
[1731683293108,33.94791519,209.9,209.89,0.2]
[1731683293291,70.98200449,209.9,209.89,35.60689886]
[1731683293494,145.05018309,209.9,209.89,0.2]
[1731683293703,145.05018309,209.9,209.89,35.60689886]
[1731683293917,194.42896882,209.9,209.89,35.40689886]
[1731683294295,226.21010277,209.9,209.89,59.18378286]
[1731683294497,226.21010277,209.9,209.89,23.776884]
[1731683294816,226.21010277,209.9,209.89,59.18572098]
[1731683294985,55.55113395,209.9,209.89,59.18572098]
[1731683295408,55.55113395,209.9,209.85,35.40883698]
[1731683295611,55.55113395,209.9,209.86,35.40883698]
[1731683295910,55.55113395,209.9,209.89,35.40883698]
[1731683296625,55.55113395,209.9,209.89,59.18572098]
[1731683296922,55.55113395,209.9,209.87,35.40883698]
[1731683297087,35.40883698,209.88,209.81,12.2569475]
[1731683297288,35.40883698,209.84,209.77,35.40883698]
[1731683297488,35.88523698,209.9,209.73,163.88996722]
[1731683297705,35.88523698,209.9,209.73,128.48113024]
[1731683297910,24.027864,209.99,209.73,133.24903024]
[1731683298084,24.027864,209.99,209.79,35.40883698]
[1731683298085,35.40883698,209.86,209.79,35.40883698]
[1731683298707,35.40883698,209.85,209.8,23.776884]
[1731683298915,35.40883698,209.82,209.75,35.40883698]
[1731683299208,0.4765,209.84,209.69,35.40883698]
[1731683299209,35.40883698,209.76,209.69,35.40883698]
[1731683299393,0.4765,209.84,209.67,35.40883698]
[1731683299394,35.40883698,209.74,209.67,35.40883698]
[1731683299591,35.40883698,209.72,209.65,35.40883698]
[1731683300103,35.40883698,209.71,209.64,48.24563698]
[1731683300413,35.40883698,209.72,209.65,35.40883698]
[1731683300600,35.40883698,209.73,209.66,35.40883698]
[1731683300797,35.40883698,209.77,209.7,35.40883698]
[1731683301007,35.40883698,209.79,209.72,35.40883698]
[1731683301192,35.40883698,209.8,209.68,23.776884]
[1731683301489,14.06323023,209.69,209.68,23.776884]
[1731683301696,14.06323023,209.69,209.67,23.776884]
[1731683301906,0.4768,209.73,209.68,23.776884]
[1731683302289,35.88563698,209.73,209.68,23.776884]
[1731683302488,35.40883698,209.72,209.65,35.40883698]
[1731683302939,35.40883698,209.71,209.56,4.7719]
[1731683303213,35.40883698,209.71,209.63,35.40883698]
[1731683303214,72.57383927,209.7,209.63,35.40883698]
[1731683303411,35.40883698,209.69,209.62,35.40883698]
[1731683303618,35.40883698,209.68,209.61,35.40883698]
[1731683303807,80.52417163,209.67,209.65,35.40883698]
[1731683304007,80.52417163,209.67,209.66,35.40883698]
[1731683304189,161.04834326,209.67,209.66,35.40883698]
[1731683304813,161.04834326,209.67,209.65,35.40883698]
[1731683305113,43.35916934,209.67,209.66,26.06214866]
[1731683305421,111.70969567,209.67,209.66,26.06214866]
[1731683306109,68.35052633,209.67,209.66,26.06214866]
[1731683306316,37.28210527,209.67,209.66,26.06214866]
[1731683306493,126.78028387,209.7,209.66,26.06214866]
[1731683306692,126.78028387,209.7,209.63,9.53543277]
[1731683306693,126.78028387,209.7,209.68,35.40883698]
[1731683306892,126.78028387,209.7,209.69,59.18572098]
[1731683307402,126.78028387,209.7,209.69,59.31121098]
[1731683307805,126.78028387,209.7,209.69,59.18572098]
[1731683308105,126.78028387,209.7,209.67,35.40883698]
[1731683308429,126.78028387,209.7,209.57,0.2]
[1731683308430,35.40883698,209.68,209.61,47.33533698]
[1731683308711,127.73398387,209.7,209.61,47.33533698]
[1731683308712,127.73398387,209.7,209.61,11.9265]
[1731683308927,126.78028387,209.7,209.61,16.6972]
[1731683309299,127.73398387,209.7,209.61,11.9265]
[1731683309498,127.73398387,209.7,209.61,11.84507624]
[1731683309703,127.73398387,209.7,209.65,35.40883698]
[1731683310027,126.78028387,209.7,209.67,35.40883698]
[1731683310395,126.78028387,209.7,209.66,23.776884]
[1731683310724,126.78028387,209.7,209.66,59.18572098]
[1731683310899,126.78028387,209.7,209.69,35.40883698]
[1731683311223,126.78028387,209.7,209.69,59.31121098]
[1731683311397,35.40883698,209.82,209.7,23.902374]
[1731683311600,35.40883698,209.83,209.75,35.40883698]
[1731683312026,35.40883698,209.84,209.77,35.40883698]
[1731683312213,35.40883698,209.84,209.7,59.31121098]
[1731683312214,36.36193698,209.83,209.76,35.40883698]
[1731683312394,0.9531,209.83,209.77,35.40883698]
[1731683312724,36.36193698,209.83,209.76,35.40883698]
[1731683312922,63.96216683,209.97,209.79,35.40883698]
[1731683313110,35.40883698,209.86,209.8,35.40883698]
[1731683313316,35.40883698,209.87,209.8,35.40883698]
[1731683313519,35.40883698,209.87,209.82,102.07692156]
[1731683313700,35.40883698,209.88,209.82,102.07692156]
[1731683313898,35.40883698,209.89,209.82,137.48575854]
[1731683314203,1.4296,209.84,209.82,102.07692156]
[1731683314815,35.40883698,209.89,209.82,137.48575854]
[1731683314999,1.4292,209.9,209.85,35.40883698]
[1731683315198,35.40883698,209.92,209.82,106.84262156]
[1731683315199,1.4291,209.92,209.87,35.40883698]
[1731683315427,36.83793698,209.92,209.85,35.40883698]
[1731683315741,36.83793698,209.92,209.83,23.776884]
[1731683315742,1.4291,209.92,209.87,35.40883698]
[1731683316028,35.40883698,209.91,209.84,35.40883698]
[1731683316325,35.40883698,209.91,209.82,11.9149]
[1731683316326,35.40883698,209.85,209.76,47.32673698]
[1731683316534,35.40883698,209.83,209.76,47.32673698]
[1731683316896,35.40883698,209.81,209.74,35.40883698]
[1731683317330,35.40883698,209.9,209.72,4.7681]
[1731683317331,35.40883698,209.8,209.73,35.40883698]
[1731683317531,35.40883698,209.78,209.71,35.40883698]
[1731683317820,35.40883698,209.9,209.69,35.40883698]
[1731683317821,35.40883698,209.77,209.69,35.40883698]
[1731683318121,35.40883698,209.72,209.65,35.40883698]
[1731683318330,3.5752,209.78,209.67,35.40883698]
[1731683318507,35.40883698,209.75,209.68,35.40883698]
[1731683318824,35.40883698,209.72,209.65,35.40883698]
[1731683319009,3.5752,209.78,209.69,35.40883698]
[1731683319331,35.40883698,209.74,209.67,35.40883698]
[1731683319529,35.40883698,209.69,209.61,35.40883698]
[1731683319700,35.40883698,209.7,209.62,35.40883698]
[1731683319902,35.40883698,209.68,209.6,35.40883698]
[1731683320130,35.40883698,209.7,209.63,35.40883698]
[1731683320920,41.67409202,209.69,209.61,35.40883698]
[1731683321112,6.26525504,209.68,209.62,35.40883698]
[1731683321313,6.26525504,209.67,209.63,59.18572098]
[1731683321513,109.08024533,209.66,209.63,35.40883698]
[1731683321718,109.15215521,209.65,209.63,35.40883698]
[1731683322039,59.52690894,209.64,209.56,0.09367462]
[1731683322197,99.27771313,209.63,209.62,35.40883698]
[1731683323027,93.01245809,209.63,209.62,35.40883698]
[1731683323232,71.08118884,209.63,209.62,35.40883698]
[1731683323536,85.27877916,209.66,209.63,5.02128]
[1731683323822,99.49190902,209.71,209.66,0.12549]
[1731683324026,99.49190902,209.71,209.7,35.40883698]
[1731683324438,35.40883698,209.8,209.63,35.40883698]
[1731683324731,35.40883698,209.7,209.63,35.40883698]
[1731683325232,35.40883698,209.69,209.62,47.33493698]
[1731683326004,35.40883698,209.69,209.6,73.52290088]
[1731683326005,35.40883698,209.67,209.6,73.52290088]
[1731683326226,35.40883698,209.63,209.56,35.40883698]
[1731683326451,35.40883698,209.62,209.55,40.18083698]
[1731683326732,35.40883698,209.59,209.52,11.9317]
[1731683327029,6.6765,209.69,209.5,35.40883698]
[1731683327030,35.40883698,209.57,209.5,35.40883698]
[1731683327220,35.40883698,209.55,209.48,35.40883698]
[1731683327426,43.776884,209.68,209.43,4.7748]
[1731683327737,23.776884,209.68,209.64,147.6781412]
[1731683328105,23.776884,209.66,209.64,147.6781412]
[1731683328309,1.9077,209.67,209.64,147.6781412]
[1731683328511,35.40883698,209.65,209.64,147.6781412]
[1731683328813,37.31653698,209.67,209.64,147.6781412]
[1731683329112,35.40883698,209.66,209.64,147.6781412]
[1731683329909,37.31653698,209.67,209.64,147.6781412]
[1731683330109,35.40883698,209.66,209.64,147.6781412]
[1731683330530,35.40883698,209.65,209.64,147.6781412]
[1731683331018,59.18572098,209.65,209.64,110.1092412]
[1731683331216,59.43670098,209.65,209.64,1.03764905]
[1731683331421,23.776884,209.64,209.57,73.84369812]
[1731683331719,35.40883698,209.58,209.57,73.84369812]
[1731683331921,35.40883698,209.58,209.47,138.79001435]
[1731683332128,35.40883698,209.6,209.47,138.79001435]
[1731683332129,14.28519343,209.48,209.47,138.79001435]
[1731683332327,14.28519343,209.49,209.47,138.79001435]
[1731683332524,14.28519343,209.49,209.47,103.38117737]
[1731683333118,72.62453739,209.48,209.47,103.38117737]
[1731683333350,173.42086224,209.48,209.47,103.38117737]
[1731683333518,211.25422692,209.48,209.47,103.38117737]
[1731683334023,323.37587151,209.48,209.47,103.38117737]
[1731683335943,358.78470849,209.48,209.47,103.38117737]
[1731683336734,352.47423448,209.48,209.47,103.38117737]
[1731683336919,204.2284143,209.48,209.47,103.38117737]
[1731683337518,280.20559281,209.48,209.47,103.38117737]
[1731683337920,229.80743039,209.48,209.47,103.38117737]
[1731683338649,217.21831308,209.48,209.47,103.38117737]
[1731683338866,160.12481053,209.48,209.47,103.38117737]
[1731683339348,103.4268778,209.48,209.47,103.38117737]
[1731683339549,84.44309641,209.48,209.47,103.38117737]
[1731683339847,84.44309641,209.48,209.4,35.40883698]
[1731683340042,14.24592359,209.41,209.4,35.40883698]
[1731683340424,42.73970078,209.49,209.41,4.7753]
[1731683340745,1.9094,209.49,209.42,35.40883698]
[1731683340948,35.40883698,209.48,209.39,11.9394]
[1731683341133,1.9094,209.49,209.36,32.7126]
[1731683341338,6.6828,209.49,209.34,12.1303055]
[1731683342149,35.40883698,209.42,209.35,35.40883698]
[1731683342653,35.40883698,209.4,209.34,0.1885055]
[1731683342958,35.40883698,209.42,209.35,35.40883698]
[1731683343248,35.40883698,209.41,209.34,35.59734248]
[1731683343453,35.40883698,209.43,209.36,35.40883698]
[1731683343623,35.40883698,209.44,209.37,35.40883698]
[1731683344024,35.40883698,209.43,209.35,35.40883698]
[1731683344224,2.3877,209.4,209.34,12.1307055]
[1731683344447,35.40883698,209.38,209.34,0.1885055]
[1731683344659,2.3877,209.4,209.34,35.59734248]
[1731683344824,2.3875,209.42,209.37,35.40883698]
[1731683345023,2.3875,209.42,209.38,35.40883698]
[1731683345235,37.79633698,209.42,209.35,35.40883698]
[1731683345441,2.3875,209.42,209.36,35.40883698]
[1731683345836,2.3873,209.44,209.38,35.40883698]
[1731683346359,2.3873,209.44,209.37,35.40883698]
[1731683346657,2.3873,209.44,209.34,16.9076055]
[1731683346658,35.40883698,209.38,209.34,0.1885055]
[1731683346864,35.40883698,209.37,209.34,0.1885055]
[1731683347030,35.40883698,209.35,209.34,0.1885055]
[1731683347231,23.776884,209.39,209.34,0.1885055]
[1731683347434,35.40883698,209.35,209.34,0.1885055]
[1731683348340,37.79713698,209.35,209.34,0.1885055]
[1731683348527,23.902374,209.34,209.16,47.36083698]
[1731683348734,35.40883698,209.24,209.16,52.14183698]
[1731683349242,35.40883698,209.24,209.16,47.36083698]
[1731683349460,35.40883698,209.21,209.14,36.2993]
[1731683349671,35.40883698,209.19,209.12,4.7817]
[1731683349831,35.40883698,209.2,209.13,35.40883698]
[1731683350032,12.6029,209.28,209.18,35.40883698]
[1731683350227,2.3892,209.27,209.12,4.7817]
[1731683350445,35.40883698,209.23,209.15,35.40883698]
[1731683350642,35.40883698,209.23,209.12,4.7817]
[1731683350643,35.40883698,209.25,209.12,4.7817]
[1731683350860,35.40883698,209.24,209.12,4.7817]
[1731683351036,35.40883698,209.24,209.17,35.40883698]
[1731683351629,35.40883698,209.27,209.2,35.40883698]
[1731683351853,35.40883698,209.3,209.22,35.40883698]
[1731683352052,35.40883698,209.32,209.25,35.40883698]
[1731683352268,2.3884,209.34,209.15,0.21916462]
[1731683352269,35.40883698,209.28,209.15,0.21916462]
[1731683352456,35.40883698,209.32,209.17,44.12153862]
[1731683352636,2.3879,209.39,209.27,35.40883698]
[1731683352836,35.40883698,209.34,209.26,35.40883698]
[1731683353064,35.40883698,209.33,209.26,35.40883698]
[1731683353272,35.40883698,209.3,209.17,44.027864]
[1731683353465,8.3576,209.39,209.22,35.40883698]
[1731683353466,35.40883698,209.29,209.22,35.40883698]
[1731683353672,14.564835,209.39,209.17,44.027864]
[1731683353673,35.40883698,209.3,209.23,35.40883698]
[1731683353840,35.40883698,209.27,209.2,35.40883698]
[1731683354161,35.40883698,209.28,209.21,35.40883698]
[1731683354471,35.40883698,209.27,209.2,35.40883698]
[1731683354957,8.358,209.38,209.18,35.40883698]
[1731683354958,35.40883698,209.26,209.18,35.40883698]
[1731683355163,35.40883698,209.28,209.21,35.40883698]
[1731683355456,35.40883698,209.25,209.17,35.40883698]
[1731683355962,35.40883698,209.24,209.17,35.40883698]
[1731683356161,35.40883698,209.25,209.18,35.40883698]
[1731683356367,35.40883698,209.28,209.21,35.40883698]
[1731683356549,35.40883698,209.29,209.15,0.09367462]
[1731683356736,35.40883698,209.29,209.21,35.40883698]
[1731683356939,37.79763698,209.31,209.23,35.40883698]
[1731683357149,35.40883698,209.26,209.16,11.9525]
[1731683357445,35.40883698,209.24,209.15,0.09367462]
[1731683357648,35.40883698,209.27,209.15,16.82797462]
[1731683357938,2.3888,209.31,209.23,35.40883698]
[1731683358145,18.05208441,209.38,209.15,16.82797462]
[1731683358146,6.11208441,209.38,209.17,0.09367462]
[1731683358353,35.40883698,209.32,209.25,35.40883698]
[1731683358678,2.3889,209.3,209.24,35.40883698]
[1731683358837,35.40883698,209.28,209.21,35.40883698]
[1731683359040,35.40883698,209.25,209.18,35.40883698]
[1731683359441,35.40883698,209.25,209.17,35.40883698]
[1731683359637,37.79773698,209.3,209.16,11.9525]
[1731683359638,35.40883698,209.23,209.16,35.40883698]
[1731683360055,35.40883698,209.24,209.17,35.40883698]
[1731683360259,35.40883698,209.2,209.15,0.09367462]
[1731683360443,37.79933698,209.16,209.15,0.09367462]
[1731683360660,35.40883698,209.2,209.15,0.09367462]
[1731683360850,2.3899,209.21,209.15,35.5025116]
[1731683361171,35.40883698,209.3,209.18,35.40883698]
[1731683361460,35.40883698,209.27,209.2,35.40883698]
[1731683361665,35.40883698,209.26,209.19,35.40883698]
[1731683361965,2.389,209.29,209.15,0.09367462]
[1731683362149,35.40883698,209.19,209.15,0.09367462]
[1731683362543,2.389,209.29,209.15,0.09367462]
[1731683362544,35.40883698,209.17,209.15,0.09367462]
[1731683362760,35.40883698,209.2,209.15,0.09367462]
[1731683362970,35.40883698,209.19,209.15,0.09367462]
[1731683363546,8.3615,209.29,209.15,0.09367462]
[1731683363547,35.40883698,209.16,209.15,0.09367462]
[1731683363760,35.40883698,209.17,209.15,0.09367462]
[1731683363991,35.40883698,209.18,209.15,0.09367462]
[1731683364168,35.40883698,209.19,209.15,0.09367462]
[1731683364468,35.40883698,209.18,209.15,0.09367462]
[1731683364671,2.3904,209.17,209.15,0.09367462]
[1731683365258,37.79923698,209.17,209.15,0.09367462]
[1731683365667,2.3904,209.17,209.15,0.09367462]
[1731683365968,35.40883698,209.18,209.15,0.09367462]
[1731683366355,2.39,209.21,209.16,35.40883698]
[1731683366753,2.39,209.21,209.15,0.09367462]
[1731683366974,24.32945088,209.21,209.15,0.09367462]
[1731683367151,21.93945088,209.19,209.15,0.09367462]
[1731683367347,21.93945088,209.18,209.15,0.09367462]
[1731683367658,21.93945088,209.16,209.15,0.09367462]
[1731683368577,21.93945088,209.16,209.1,0.5205139]
[1731683368578,0.09367462,209.14,209.1,1.39e-05]
[1731683368751,43.87890176,209.11,209.1,1.39e-05]
[1731683369448,43.87890176,209.11,208.99,15.0]
[1731683369643,21.93945088,209.05,208.99,15.0]
[1731683369848,21.93945088,209.06,208.99,36.93945088]
[1731683370077,21.93945088,209.07,209.0,21.93945088]
[1731683370456,8.3679,209.13,208.99,15.0]
[1731683370457,21.93945088,209.06,208.99,15.0]
[1731683370775,21.93945088,209.05,208.99,15.0]
[1731683371152,21.93945088,209.06,208.99,15.0]
[1731683371351,21.93945088,209.07,209.0,21.93945088]
[1731683371563,5.9774,209.12,208.99,15.0]
[1731683371564,21.93945088,209.08,209.01,21.93945088]
[1731683371761,21.93945088,209.07,208.99,41.72415088]
[1731683371953,21.93945088,209.07,209.0,21.93945088]
[1731683372480,21.93945088,209.07,208.99,36.93945088]
[1731683372663,21.93945088,209.06,208.99,36.93945088]
[1731683373678,21.93945088,209.07,209.0,21.93945088]
[1731683373877,21.93945088,209.07,208.99,36.93945088]
[1731683374078,21.93945088,209.05,208.99,15.0]
[1731683374869,2.3918,209.05,208.99,36.93945088]
[1731683375075,24.33095088,209.07,209.0,21.93945088]
[1731683375286,21.93945088,209.06,208.99,36.93945088]
[1731683375456,21.93945088,209.05,208.99,15.0]
[1731683375784,21.93945088,209.08,209.01,21.93945088]
[1731683376067,21.93945088,209.09,209.01,21.93945088]
[1731683376373,24.33065088,209.1,209.03,21.93945088]
[1731683376673,21.93945088,209.1,209.03,21.93945088]
[1731683376851,21.93945088,209.1,209.02,45.84182488]